Cogmind - Beta 11 @@@ ROGUE MODE // 2022.04.02 @ 11:12:56 Player: Awoo-Bot Result: Self-destructed Performance ------------- Evolutions (1) 500 Regions Visited (2) 400 Robots Destroyed (19) 95 Value Destroyed (460) 460 Prototype IDs (0) 0 Alien Tech Used (0) 0 Bonus (0) 0 TOTAL SCORE: 1455 Bonus ------- None Cogmind --------- Core Integrity 352/400 Matter 494/500 Energy 265/265 System Corruption 0% Temperature Cool (0) Movement Treading (240) Ox1 Location -9/Materials Parts ------- > --- POWER (1) -------- Improved Ion Engine > --- PROPULSION (3) --- Light Treads Light Treads Compact Wheel > --- UTILITY (3) ------ Large Storage Unit High-capacity Matter Pod Light Armor Plating > --- WEAPON (2) ------- Assault Rifle Heavy Assault Rifle > --- INVENTORY (15) --- Ion Engine Light Treads Large Storage Unit Assault Rifle Assault Rifle Assault Rifle Assault Rifle Datajack Peak State ------------ > --- POWER ------------ Improved Ion Engine > --- PROPULSION ------- Light Treads Light Treads Wheel > --- UTILITY ---------- Large Storage Unit Light Armor Plating Light Armor Plating > --- WEAPON ----------- Assault Rifle Heavy Assault Rifle > --- INVENTORY -------- Ion Engine Light Treads Compact Wheel Large Storage Unit High-capacity Matter Pod Assault Rifle Assault Rifle Assault Rifle Assault Rifle Assault Rifle Datajack [Rating: 12] Favorites ----------- Power Ion Engine Engine Ion Engine Propulsion Light Treads Treads Light Treads Wheel Wheel Utility Large Storage Unit Device Seismic Detector Storage Large Storage Unit Protection Light Armor Plating Weapon Assault Rifle Ballistic Gun Assault Rifle Build | -11 -10 -9 ------- Run | Scr Mat Mat Slots Evolved 2 | . . 2 Power . | . . . Propulsion 1 | . . 1 Utility 1 | . . 1 Weapon . | . . . Parts Attached 23 | 8 3 12 Power 3 | 1 1 1 Engine 3 | 1 1 1 Core . | . . . Reactor . | . . . Propulsion 7 | 2 . 5 Treads 5 | 2 . 3 Leg . | . . . Wheel 2 | . . 2 Hover . | . . . Flight . | . . . Utility 7 | 3 1 3 Device 1 | 1 . . Storage 4 | 2 1 1 Processor . | . . . Hackware . | . . . Protection 2 | . . 2 Artifact . | . . . Weapon 6 | 2 1 3 Energy Gun . | . . . Energy Cannon . | . . . Ballistic Gun 6 | 2 1 3 Ballistic Cannon . | . . . Launcher . | . . . Special Weapon . | . . . Impact Weapon . | . . . Slashing Weapon . | . . . Piercing Weapon . | . . . Special Melee Weapon . | . . . Unidentified Prototypes . | . . . Parts Lost 7 | . 3 4 Power 1 | . 1 . Propulsion 1 | . . 1 Utility 2 | . 1 1 Weapon 3 | . 1 2 Highest Loss Streak 2 | . 2 2 To Critical Strikes . | . . . Average Slot Usage (%) 92 | . 94 89 Engine 12 | . 13 11 Treads 25 | . 28 21 Wheel 2 | . . 7 Device 7 | . 11 . Storage 13 | . 14 12 Protection 5 | . . 15 Ballistic Gun 23 | . 25 19 Naked Turns . | . . . Heaviest Build 39 | 18 30 39 Greatest Support 40 | 40 40 40 Greatest Overweight (x) 3 | . . 3 Average Overweight (x) . | . . . Largest Inventory Capacity 15 | 8 15 15 Average Capacity 14 | 7 14 15 Most Carried 14 | 3 14 13 Average Carried 8 | 2 8 10 Final Capacity 15 | 8 15 15 Final Carried 13 | 3 13 8 Class Distribution -------------------- 96% | Mutant 3% | Scavenger-Mutant Dominant Class ---------------- Mutant | -10/Materials Mutant | -9/Materials Resources | -11 -10 -9 ----------- Run | Scr Mat Mat Matter Collected 915 | 312 219 384 Remotely . | . . . Salvage Created 770 | 107 207 456 Parts 49 | 7 14 28 Haulers Intercepted 1 | . . 1 Recyclers Shooed 2 | . 1 1 Parts Field Recycled . | . . . Retrieved Matter . | . . . Parts Self-Destructed . | . . . Prevented . | . . . Kills | -11 -10 -9 ------- Run | Scr Mat Mat Combat Hostiles Destroyed 13 | . 3 10 Guns 13 | . 3 10 Classes Destroyed 9 | 2 2 5 Builder 1 | . . 1 Tunneler 1 | 1 . . Hauler 1 | . . 1 Recycler 2 | 1 1 . Watcher 1 | . 1 . Swarmer 3 | . . 3 Grunt 7 | . 3 4 Duelist 1 | . . 1 Sentry 2 | . . 2 Best Kill Streak 4 | 2 4 4 Combat Bots Only 4 | . 3 4 Max Kills in Single Turn 2 | 1 1 2 Gunslinging 1 | . . 1 Exploded . | . . . Melee . | . . . Uniques/NPCs Destroyed . | . . . Combat | -11 -10 -9 -------- Run | Scr Mat Mat Damage Taken 1348 | . 610 738 Core 224 | . 176 48 Absorbed by Shields . | . . . Core Remaining (%) 64 | 100 29 . Volleys Fired 60 | 8 13 39 Largest 2 | 2 2 2 Hottest 43 | 40 40 43 Shots Fired 108 | 16 26 66 Gun 108 | 16 26 66 Cannon . | . . . Launcher . | . . . Special . | . . . Kinetic 108 | 16 26 66 Thermal . | . . . Explosive . | . . . Electromagnetic . | . . . Robot Hit Streak 10 | 7 7 10 Robot Miss Streak 3 | 2 1 3 Penetration Max . | . . . Secondary Targets 2 | . 1 1 Max Gunslinging Chain 1 | . 1 1 Shots Hit Robots 77 | 10 21 46 Core Hits 33 | 4 11 18 Critical Kills 1 | . . 1 Critical Parts Destroyed . | . . . Critical Strikes 1 | . . 1 Destroy 1 | . . 1 Melee Attacks . | . . . Impact . | . . . Slashing . | . . . Piercing . | . . . Sneak Attacks . | . . . Combat Hostiles . | . . . Follow-up Attacks . | . . . Damage Inflicted 971 | 98 256 617 Guns 971 | 98 256 617 Cannons . | . . . Explosions . | . . . Melee . | . . . Ramming . | . . . Kinetic 971 | 98 256 617 Thermal . | . . . Explosive . | . . . Electromagnetic . | . . . Impact . | . . . Slashing . | . . . Piercing . | . . . Highest Corruption 2 | . 2 . Average Corruption 2 | . 2 . Corruption Purged . | . . . Corruption Blocked . | . . . Effects 3 | . 3 . Matter Fused 2 | . 2 . Data Loss (minor) 1 | . 1 . Overload Shots . | . . . Overflow Damage . | . . . Projectiles . | . . . Explosions . | . . . Melee . | . . . Knockbacks . | . . . Impact . | . . . Kinetic . | . . . Secondary . | . . . Self-Inflicted Damage . | . . . Shots . | . . . Rammed . | . . . Targets Rammed . | . . . Kicked . | . . . Crushed . | . . . Highest Temperature 23 | . 15 23 Average Temperature 7 | . 12 7 Received Heat Transfer 336 | . 144 192 Siege Activations . | . . . Robots Corrupted . | . . . Combat Hostiles . | . . . Parts Fried . | . . . Impact Corruptions . | . . . Robots Melted . | . . . Combat Hostiles . | . . . Parts Melted . | . . . Heat Transferred . | . . . Parts Sabotaged . | . . . Parts Stolen . | . . . Parts Stripped . | . . . Power Chain Reactions . | . . . Missiles Intercepted . | . . . Alert | -11 -10 -9 ------- Run | Scr Mat Mat Peak Influence 262 | 10 107 262 Initial 40 | . 6 40 Average 56 | 3 24 128 Maximum Alert Level 1 | . . 1 Low Security (%) 96 | 100 100 89 Level 1 3 | . . 10 Level 2 . | . . . Level 3 . | . . . Level 4 . | . . . Level 5 . | . . . High Security . | . . . Max Security . | . . . Squads Dispatched 2 | . 1 1 Investigation 1 | . . 1 Extermination . | . . . Reinforcement 1 | . 1 . Assault . | . . . Garrison . | . . . Intercept . | . . . Searches Triggered . | . . . Construction Impeded . | . . . Haulers Reinforced . | . . . Active Scanning Responses . | . . . Cargo Convoy Interrupts . | . . . Stealth | -11 -10 -9 --------- Run | Scr Mat Mat Distress Signals 2 | . . 2 Communications Jammed . | . . . Distress Signals . | . . . Times Spotted 26 | . 10 16 Peak Tracking Total 4 | . 3 4 Tactical Retreats 2 | . . 2 Traps | -11 -10 -9 ------- Run | Scr Mat Mat Traps Triggered 2 | . 1 1 Indirectly . | . . . Trap Hack Attempts . | . . . Triggered . | . . . Disarmed . | . . . Reprogrammed . | . . . Reused . | . . . Traps Extracted . | . . . Installed . | . . . Triggered . | . . . Machines | -11 -10 -9 ---------- Run | Scr Mat Mat Machines Disabled . | . . . Max in Single Turn . | . . . Machines Sabotaged . | . . . Garrisons Compromised . | . . . Overloaded Fab Kills . | . . . Hacking | -11 -10 -9 --------- Run | Scr Mat Mat Machines Accessed 3 | . 2 1 Terminals 3 | . 2 1 Fabricators . | . . . Repair Stations . | . . . Recycling Units . | . . . Scanalyzers . | . . . Garrison Access . | . . . Total Hacks 7 | . 6 1 Successful 4 | . 3 1 Failed 3 | . 3 . Catastrophic . | . . . Database Lockouts . | . . . Manual 7 | . 6 1 Terminals 7 | . 6 1 Fabricators . | . . . Repair Stations . | . . . Recycling Units . | . . . Scanalyzers . | . . . Garrison Access . | . . . Terminal Hacks 1 | . . 1 Branch Access Points 1 | . . 1 Fabricator Hacks . | . . . Repair Station Hacks . | . . . Recycling Unit Hacks . | . . . Scanalyzer . | . . . Garrison Access Hacks . | . . . Unauthorized Hacks 3 | . 3 . Terminals 3 | . 3 . Botnet 2 | . 2 . Operators 1 | . 1 . Fabricators . | . . . Repair Stations . | . . . Recycling Units . | . . . Scanalyzers . | . . . Garrison Access . | . . . Data Cores Recovered . | . . . Used . | . . . Hacking Detections 2 | . 2 . Full Trace Events . | . . . Feedback Events . | . . . Feedback Blocked . | . . . Robot Schematics Acquired . | . . . Robots Built . | . . . Authchips . | . . . Time . | . . . Total Robot Build Rating . | . . . Part Schematics Acquired . | . . . Parts Built . | . . . Authchips . | . . . Time . | . . . Total Part Build Rating . | . . . Parts Repaired . | . . . Time . | . . . Parts Recycled . | . . . Recycled Matter . | . . . Retrieved Matter . | . . . Retrieved Components . | . . . Parts Scanalyzed . | . . . Part Schematics Acquired . | . . . Parts Damaged . | . . . Bothacking | -11 -10 -9 ------------ Run | Scr Mat Mat Used RIF Installer . | . . . Robots Hacked . | . . . Non-combat . | . . . Combat . | . . . Robot Hacks Applied . | . . . Relay Couplers Released . | . . . Fabnet Peak Effective % . | . . . Robots Rewired . | . . . Allies Hacked . | . . . Hacks Repelled . | . . . Allies | -11 -10 -9 -------- Run | Scr Mat Mat Total Allies . | . . . Largest Group . | . . . Highest-Rated Group . | . . . Highest-Rated Ally . | . . . Total Orders . | . . . Ally Attacks . | . . . Total Damage . | . . . Kills . | . . . Allies Corrupted . | . . . Allies Melted . | . . . Intel | -11 -10 -9 ------- Run | Scr Mat Mat Robot Analysis Total . | . . . Derelict Logs Recovered . | . . . Drone Launches . | . . . Drone Recoveries . | . . . Exploration | -11 -10 -9 ------------- Run | Scr Mat Mat Turns Passed 1730 | 148 1014 568 Spaces Moved 798 | 73 500 225 Core 5 | 5 . . Treads 758 | 68 500 190 Legs . | . . . Wheels 35 | . . 35 Hover . | . . . Flight . | . . . Fastest Speed 50 | 50 160 125 Average Speed 169 | 152 160 197 Slowest Speed 240 | 160 160 240 Overloaded Moves . | . . . Propulsion Burnouts . | . . . Robots Hopped . | . . . Cave-ins Triggered 1 | . 1 . Exploration Rate (%) 30 | 5 66 21 Regions Visited 2 Branch Regions . Pre-discovered Areas . | . . . Known Exits Taken . | . . . Unknown Exits Taken 2 | 1 1 . Scrap Searched . | . . . Spaces Dug . | . . . Terrain Destroyed . | . . . Melee . | . . . Projectile . | . . . AOE . | . . . Terrain Rammed . | . . . Walls Destroyed . | . . . Machines Disabled . | . . . Actions | -11 -10 -9 --------- Run | Scr Mat Mat Total 1060 | 92 689 279 Wait 160 | . 157 3 Move 796 | 72 499 225 Hop . | . . . Pick Up 16 | 3 13 . Fast Attach 10 | 8 . 2 Attach 8 | . 1 7 Detach . | . . . Swap 5 | . 2 3 Drop 5 | 1 4 . Fire 60 | 8 13 39 Melee . | . . . Ram . | . . . Kick . | . . . Crush . | . . . Escape Stasis . | . . . Rewire . | . . . Trap . | . . . Miscellaneous . | . . . Route ------- -11/Scrapyard -10/Materials (discovered 4 exits: *Mat x2 / [*Min x2]) -9/Materials (discovered 2 exits: [*Mat] / *Min) History --------- Turn | Location | Event 53 | -11/Scrapyard | Discovered new exit (range 14) 149 | -11/Scrapyard | Entered Materials 316 | -10/Materials | Build established: Mutant 351 | -10/Materials | Discovered new exit (range 7) 460 | -10/Materials | Discovered new exit (range 9) 546 | -10/Materials | Discovered new exit (range 15) 1018 | -10/Materials | Crushed by falling debris 1018 | -10/Materials | Core integrity fell below 50% 1068 | -10/Materials | Discovered new exit (range 16) 1163 | -10/Materials | Entered another Materials area 1163 | -9/Materials | Evolved 2 slots: Propulsion x1, Utility x1 1446 | -9/Materials | Discovered new exit (range 16) 1470 | -9/Materials | Discovered new exit (range 16) 1731 | -9/Materials | Identified exit to Mines 1731 | -9/Materials | Self-destructed Last Messages --------------- 01618_ Lgt. Armor Plating destroyed. 01620_ Lgt. Treads severed. 01630_ L-31 Rogue destroyed. 01639_ G-34 Mercenary destroyed. 01653_ U-05 Engineer builds a Door. 01658_ U-05 Engineer destroyed. 01659_ K-01 Serf collects debris. 01661_ Acquired 40 matter. 01662_ K-01 Serf collects debris. 01663_ Acquired 47 matter. 01666_ Acquired 33 matter. 01670_ K-01 Serf collects debris. 01680_ S-10 Pest destroyed. 01681_ K-01 Serf collects debris. 01731_ Connecting with Terminal... 01731_ Current location identified: Materials >>Access(Branch) Found 1 branch access point: (8,82) Mines Map updated. Map ----- +----------------------------------------------------+ | #????????????????????????????????????????????????? | | #????????????????????????????????????????????????? | | #????????????????????????????????????????????????? | | #????????????????????????????????????????????????? | | #????????????????????????????????????????????????? | | #????????????????????????????????????????????????? | | #????????????????????????????????????????????????? | | #????????????????????????????????????????????????? | | #????????????????????????????????????????????????? | | #????????????????????????????????????????????????? | | #????????????????????????????????????????????????? | | #????????????????????????????????????????????????? | | ?????????????????????????????????????????????????? | | ?????????????????????????????????????????????????? | | ?????????????????????????????????????????????????? | | ?????????????????????????????????????????????????? | | ?????????????????????????????????????????????????? | | ?????????????????????????????????????????????????? | | ?????????????????????????????????????????????????? | | ######???????? ??????????????????????????????????? | | #?????# #####?????????????????????????????? | | !#?????# ?????????????????????????????? | | #?????# ?????????????????????????????? | | /########??# ??#####??????????????? ?????? | | #??# ???# T #??????????????? ?????? | | ##### #??# ??# @ #??????????????? ?????? | | #???# #??# ???# #??????????????? ?????? | | ###???# #??# ????# #??????????????? ?????? | | #####?# #??# #????# #??????????????? ?????? | | #?# #??# #????# #?????########?? ?????? | | """ #?# #??# #????# #?????# #?# #????? | | """ #?# #??# #######+###????# """ #?# #????? | | """ #?# #??# +????# """ #?# #????? | | #?# #??# ######????# """ #?# #????? | | #?# #??# #?????????# #?# #????? | | ####### #??# #???####### #?# #????? | | # #%#### ##### ###+###### ###### | | # *=#*%* % | | # =%+ ! * | | #""" [#=== | | #""" =#+#######+############ ############## | | #""" # """ """ """ #???#####+#####??????????# | | # # """ ""= ["" ##???# #??????????# | | #""" # """ """= "" #????# #???######## | | #""" # =[= #????# """ #???# | | #""" # [ ! #????# """"" #???# | | ? # ! / #????# """"" #???# | | ??########+##########????# """"" #???# ###+### | | ????????? ??????????????# """ #???# # ? | | ????????? ???????????????# ??? #???# # """ | +----------------------------------------------------+ Best States ------------- Heat Dissipation 28 Energy Generation 12 Energy Capacity 265 Matter Stores 500 Matter Capacity 500 Sight Range 16 Terrain Scan Density 10 Armor Coverage 300 Evasion (%) 40 Recoil Reduction 2 Item Schematics ----------------- None Robot Schematics ------------------ None Fabricated ------------ Nothing Alien Tech Used ----------------- None Achievements -------------- None Challenges ------------ None Game ------ Seed TrapFrostBlade Manual? 0 Play Time 00:10:42 Cumulative 56.6 hours Start 2022.04.02 @ 11:01:40 End 2022.04.02 @ 11:12:56 Sessions 1 Manual Loads 0 Difficulty Rogue Special Mode None Game No. 95 Rogue 67 Adventurer 28 Explorer 0 Win Type - Total 0 Types 0/0/0/0/0/0/0/0/0 Lore% 23 Gallery% 28 Achievement% 30 Wizard Run 0 Options --------- ASCII 0 Keyboard 0 Movement Mouse Keybinds 0 Fullscreen 1 Font 24/Terminus Map View 84x54 Tactical HUD 1 Map Filters NONE Filters NONE Steam 1 RUN: c8576c1a-7abb-40ab-a547-da331d3b9d47